{"text_format":"1","workbook":"xlsx","n_sheets":4,"sheets":["Cálculo de CRC","Instrucciones","Dudas frecuentes","Tablas origen datos"],"not_rendered":{"charts":0,"images":3,"macros":1,"external_links":0,"defined_names":13,"comments":0,"pivot_tables":0},"unopened":[],"bounds":{"document_bytes":16777216,"sheet_cells":100000,"rows_first":2000,"rows_last":500,"rows_between":2000,"halvings":0,"cell_chars":16384,"cell_head_chars":4096},"cells_cut":0,"cells_raw":0,"read":"whole","date_system":"1900"}

{"sheet":"Cálculo de CRC","index":0,"n_rows":70,"n_cols":9,"rows_kept":70,"cut":false,"hidden":false,"merged":[[24,8,26,8],[37,1,37,2],[36,4,38,4],[36,5,38,5],[36,6,38,6],[25,1,25,2],[28,6,30,6],[24,5,26,5],[28,5,30,5],[28,4,30,4],[24,4,26,4],[24,1,24,2],[11,2,11,8],[12,2,12,8],[13,2,13,8],[20,6,22,6],[20,8,22,8],[20,4,22,4],[21,1,21,2],[22,1,22,2],[20,7,21,7],[20,1,20,2],[18,4,18,7],[20,5,22,5],[17,8,18,8],[17,1,18,3],[17,4,17,7],[5,3,5,8],[57,1,57,8],[42,5,42,6],[55,2,55,8],[33,1,33,2],[34,1,34,2],[19,1,19,2],[15,1,15,2],[26,1,26,2],[28,1,28,2],[29,1,29,2],[30,1,30,2],[32,1,32,2],[24,6,26,6],[24,7,25,7],[10,2,10,8],[54,2,54,8],[28,8,30,8],[32,8,34,8],[32,6,34,6],[32,5,34,5],[32,4,34,4],[41,1,44,2],[36,1,36,2],[28,7,29,7],[32,7,33,7],[36,8,38,8],[38,1,38,2],[36,7,37,7],[45,6,45,8],[44,5,44,6],[42,7,42,8],[48,8,50,8],[49,1,49,2],[50,1,50,2],[48,7,50,7],[48,4,50,5],[47,4,47,5],[47,1,47,2],[46,1,46,4],[48,1,48,2],[48,6,50,6]]}
[]
[]
[]
[]
[]
[null,null,null,"COSTES DE REFERENCIA DE LA CONSTRUCCIÓN (CRC)\nY RESUMEN DE SUPERFICIES"]
[]
[]
[]
[null,"Datos de proyecto"]
[null,"Obra"]
[null,"Emplazamiento "]
[null,"Promotor"]
[null,"Arquitecto/as"]
[]
[null,"Cálculo CRC"]
[]
[null,"Módulo COACYLE   M    (€ / m2)",null,null,"Seleccione provincia",null,null,null,{"$f":"VLOOKUP(E19,'Tablas origen datos'!B159:C1399,2,0)","v":0}]
[null,null,null,null,"Seleccione municipio"]
[null,"Tipo de uso",null,null,"Ct","Tipo de intervención","Ci","Superficie \nconstruida S","M x Ct x Ci x S"]
[null,"Seleccione grupo",null,{"$f":"VLOOKUP(B21,'Tablas origen datos'!B13:C23,2,0)","v":0},{"$f":"VLOOKUP(B23,'Tablas origen datos'!B64:D133,3,0)","v":0},"Rehabilitación completa (no estructural)",{"$f":"VLOOKUP(F21,'Tablas origen datos'!B139:C144,2,0)","v":0.92},0,{"$f":"H21*G21*E21*I18","v":0}]
[null,"Seleccione nivel",null,{"$f":"VLOOKUP(B22,'Tablas origen datos'!B28:D59,3,0)","v":0}]
[null,"Seleccione tipología",null,null,null,null,null,{"$f":"IFERROR(H21/H41, 0)","v":0}]
[]
[null,"Seleccione grupo",null,{"$f":"VLOOKUP(B25,'Tablas origen datos'!B13:C23,2,0)","v":0},{"$f":"VLOOKUP(B27,'Tablas origen datos'!B64:D133,3,0)","v":0},"Seleccione tipo de intervención",{"$f":"VLOOKUP(F25,'Tablas origen datos'!B139:C144,2,0)","v":0},0,{"$f":"H25*G25*E25*I18","v":0}]
[null,"Seleccione nivel",null,{"$f":"VLOOKUP(B26,'Tablas origen datos'!B28:D59,3,0)","v":0}]
[null,"Seleccione tipología",null,null,null,null,null,{"$f":"IFERROR(H25/H41,0)","v":0}]
[]
[null,"Seleccione grupo",null,{"$f":"VLOOKUP(B29,'Tablas origen datos'!B13:C23,2,0)","v":0},{"$f":"VLOOKUP(B31,'Tablas origen datos'!B64:D133,3,0)","v":0},"Seleccione tipo de intervención",{"$f":"VLOOKUP(F29,'Tablas origen datos'!B139:C144,2,0)","v":0},0,{"$f":"H29*G29*E29*I18","v":0}]
[null,"Seleccione nivel",null,{"$f":"VLOOKUP(B30,'Tablas origen datos'!B28:D59,3,0)","v":0}]
[null,"Seleccione tipología",null,null,null,null,null,{"$f":"IFERROR(H29/H41,0)","v":0}]
[]
[null,"Seleccione grupo",null,{"$f":"VLOOKUP(B33,'Tablas origen datos'!B13:C23,2,0)","v":0},{"$f":"VLOOKUP(B35,'Tablas origen datos'!B64:D133,3,0)","v":0},"Seleccione tipo de intervención",{"$f":"VLOOKUP(F33,'Tablas origen datos'!B139:C144,2,0)","v":0},0,{"$f":"H33*G33*E33*I18","v":0}]
[null,"Seleccione nivel",null,{"$f":"VLOOKUP(B34,'Tablas origen datos'!B28:D59,3,0)","v":0}]
[null,"Seleccione tipología",null,null,null,null,null,{"$f":"IFERROR(H33/H41,0)","v":0}]
[]
[null,"Seleccione grupo",null,{"$f":"VLOOKUP(B37,'Tablas origen datos'!B13:C23,2,0)","v":0},{"$f":"VLOOKUP(B39,'Tablas origen datos'!B64:D133,3,0)","v":0},"Seleccione tipo de intervención",{"$f":"VLOOKUP(F37,'Tablas origen datos'!B139:C144,2,0)","v":0},0,{"$f":"H37*G37*E37*I18","v":0}]
[null,"Seleccione nivel",null,{"$f":"VLOOKUP(B38,'Tablas origen datos'!B28:D59,3,0)","v":0}]
[null,"Seleccione tipología",null,null,null,null,null,{"$f":"IFERROR(H37/H41,0)","v":0}]
[]
[null,"Observaciones",null,null,null,"Suma de superficies",null,{"$f":"H21+H25+H29+H33+H37","v":0}]
[]
[null,null,null,null,null,"CRC",null,{"$f":"SUM(I21+I25+I29+I33+I37)","v":0}]
[]
[null,null,null,null,null,"PEM proyecto \n(sin gastos generales ni beneficio industrial)",null,null,0]
[null,null,null,null,null,"Aviso COACYLE",{"$f":"IF((H43>I45),\"PEM inferior a referencia\", \"PEM superior a referencia\")","v":"PEM superior a referencia"}]
[null,"Otras intervenciones no contempladas en CRC\n(sustitución puntual estructural, cambios en fachadas, ascensores, demoliciones, etc.)"]
[null,"Tipo de uso",null,null,"Intervención \nno contemplada",null,"Superficie equivalente","Superficie construida","PEM otras intervenciones"]
[null,"Seleccione grupo",null,{"$f":"VLOOKUP(B49,'Tablas origen datos'!B13:C23,2,0)","v":0},null,null,{"$f":"I49/500","v":0},0,0]
[null,"Seleccione nivel",null,{"$f":"VLOOKUP(B50,'Tablas origen datos'!B28:D59,3,0)","v":0}]
[null,"Seleccione tipología"]
[]
[null,null,null,null,null,"TOTAL superficies",null,{"$f":"H41+H49","v":0}]
[]
[null,"En"]
[null,"Firma"]
[]
[null,"De acuerdo con lo establecido en la normativa vigente en materia de Protección de Datos de carácter personal, le informamos de que el COLEGIO OFICIAL DE ARQUITECTOS DE CASTILLA Y LEON ESTE, COACYLE es el responsable del tratamiento de los datos, con la finalidad de gestionar su relación con el colegio y su condición de colegiado. La legitimación de este tratamiento de datos reside en la ejecución de la prestación de un servicio y cumplimiento de una obligación legal que nos asiste como responsables. No se comunicarán sus datos a terceros salvo obligación legal. En caso de producirse alguna modificación en sus datos, le rogamos nos lo comunique debidamente. Tiene derecho a acceder, rectificar y suprimir los datos, así como otros derechos, como se explica en la información adicional, que encontrará disponible en la Política de privacidad de nuestra página web: www.coacyle.com. Para el ejercicio de sus derechos de acceso, rectificación o supresión, limitación de su tratamiento, portabilidad y/u oposición, podrá dirigirse al responsable del tratamiento: COLEGIO OFICIAL DE ARQUITECTOS DE CASTILLA Y LEÓN ESTE (Ref. Protección de Datos), C/ Miguel Íscar 17 – 2º Dcha., 47001 Valladolid. Delegado de Protección de Datos: dpd@data-consulting.es. Nota importante: En los supuestos en los que se deban incluir datos de carácter personal, referentes a terceras personas físicas, en cualquiera de los formularios, se las deberá, con carácter previo a su inclusión, informar de la cesión de sus datos de carácter personal al COACYLE y al Consejo Superior de Arquitectos."]
[]
[]
[]
[]
[]
[]
[]
[]
[]
[]
[]
[null,"Es posible consultar las dudas en la dirección email cat@coacyle.com"]

{"sheet":"Instrucciones","index":1,"n_rows":41,"n_cols":4,"rows_kept":41,"cut":false,"hidden":false,"merged":[[28,3,28,11],[27,3,27,11],[13,3,13,11],[19,3,19,11],[20,3,20,11],[21,3,21,11],[15,3,15,11]]}
[]
[]
[]
[]
[]
[]
[]
[]
[]
[]
[]
[null,null,null,"INSTRUCCIONES PARA RELLENAR EL FORMULARIO"]
[]
[null,null,null,"Las celdas que figuran en rojo son las celdas mínimas a rellenar para que se produzca el cálculo de CRC. También es necesario rellenar las celdas que están sombreadas en gris, con los datos de proyecto. Las celdas en blanco se rellenarán automáticamente. "]
[]
[null,null,0,"Habilite las macros del documento"]
[]
[]
[]
[null,null,1,"Indique los datos de proyecto"]
[null,null,2,"Seleccione el módulo, indicando la provincia y el municipio."]
[null,null,3,"Indique tipo de uso. Se pueden indicar hasta 5 usos diferentes. Para ello, seleccione primero el desplegable \"Grupo\", después \"Nivel\" y finalmente \"Tipología\". Automáticamente aparecerá el Ct correspondiente."]
[null,null,4,"Indique tipo de intervención. Automáticamente aparecerá el Ci correspondiente."]
[null,null,5,"Indique la superficie construida"]
[null,null,6,"Introduzca observaciones si lo cree necesario, para aclarar los datos introducidos"]
[null,null,7,"Introduzca PEM del proyecto (sin gastos generales ni beneficio industrial). "]
[null,null,8,"Indique el lugar y firme el documento"]
[null,null,null,"El aviso de COACYLE expresa si el PEM del proyecto está por debajo del Coste de Referencia de la Construcción. Este aviso es informativo y no implicará la denegación del visado. "]
[null,null,null,"Cuando la intervención no se ajuste a la especificada en los desplegables, se rellenará el apartado \"Otras intervenciones no contemplados en CRC\". Al rellenar este campo, no es necesario especificar ni el Módulo, ni el tipo de intervención. Se indicará el uso con el desplegable, se tecleará la intervención no comtemplada, la superficie construida y el PEM (sin gastos generales ni beneficio industrial). "]
[]
[]
[]
[]
[]
[]
[]
[]
[]
[]
[]
[null,null,null,"Es posible consultar las  dudas en la dirección email cat@coacyle.com"]

{"sheet":"Dudas frecuentes","index":2,"n_rows":42,"n_cols":4,"rows_kept":42,"cut":false,"hidden":false,"merged":[[29,3,29,11],[32,3,32,11],[35,3,35,11],[17,3,17,11],[14,3,15,11],[20,3,20,11],[23,3,23,11],[26,3,26,11]]}
[]
[]
[]
[]
[]
[]
[]
[]
[]
[]
[]
[null,null,null,"DUDAS FRECUENTES "]
[]
[null,null,null,"¿Es obligatorio rellenar este impreso para visar?"]
[null,null,null,"Sí, deberá entregarse junto con la solicitud de visado."]
[]
[null,null,null,"¿Se denegará el visado si el PEM de proyecto es inferior a  el CRC?"]
[null,null,null,"No se denegará el visado, tan solo se informa de que el PEM es inferior o superior al CRC."]
[]
[null,null,null,"¿Qué superficie construida se toma para aplicar el CRC?"]
[null,null,null,"Se utilizará la superficie construida sobre la que se lleva a cabo la intervención. Si se trata de obra nueva, se utilizará la superficie construida total. Si se trata de la reforma de una vivienda, se aplicará la superficie construida donde se interviene. Si se trata de una ampliación, se utilizará la superficie de la ampliación. "]
[]
[null,null,null,"¿Qué se entiende por superficie construida?"]
[null,null,null,"Se entiende por superficie construida la delimitada por las líneas exteriores de cada una de las plantas que tengan un USO POSIBLE. Los balcones o terrazas y las superficies cubiertas no cerradas (porches abiertos o plantas diáfanas) se computarán por el 50% de su superficie. "]
[]
[null,null,null,"¿Qué ocurre en el caso de las ampliaciones o elevaciones de las construcciones?"]
[null,null,null,"El presupuesto de referencia se calculará de igual forma que la señalada anteriormente, considerando las características de todo el conjunto y aplicando el valor del metro cuadrado obtenido a la superficie construida que se amplía. "]
[]
[null,null,null,"¿Cómo hago el CRC si en mi edificio hay diferentes usos?"]
[null,null,null,"Cuando en una misma edificación existan usos que estén comprendidos en más de uno de los grupos que se definen, el presupuesto de referencia se obtendrá sumando los resultados de multiplicar la superficie construida de cada uso por los costes del metro cuadrado obtenidos de cada uno de ellos. "]
[]
[null,null,null,"¿Qué ocurre en el caso de los usos no contemplados en las tablas CRC?"]
[null,null,null,"Si el uso o la tipología del edificio no figura en esta documentación, se puede tratar de asemejar el uso no disponible a otro uso que sí que figure en este listado, cuyas características puedan corresponderse."]
[]
[null,null,null,"Mi proyecto es una intervención que no figura en el desplegable de intervenciones. ¿Qué hago?"]
[null,null,null,"Cuando la intervención no figura en el desplegable de intervenciones, por tratarse por ejemplo de la sustitución de un pilar, de cambios en fachada, de una demolición, de la instalación de un ascensor, se deberá utilizar el apartado \"otras intervenciones no contempladas en CRC\". Se indicará el uso en el desplegable, se tecleará la intervención, así como la superficie y el PEM (sin gastos generales ni beneficio industrial). "]
[]
[]
[]
[]
[]
[null,null,null,"Es posible consultar las dudas en la dirección email cat@coacyle.com"]

{"sheet":"Tablas origen datos","index":3,"n_rows":1399,"n_cols":4,"rows_kept":1399,"cut":false,"hidden":true,"merged":[]}
[]
[]
["Módulo"]
["id","nombre","valor"]
[0,"Seleccione módulo",0]
[1,"Poblaciones de más de 20.000 habitantes",650]
[2,"Poblaciones de menos de 20.000 habitantes",600]
[]
[]
[]
["Grupo"]
["id","valor"]
[0,"Seleccione grupo",0]
[1,"Residencial",1]
[2,"Industrial ",2]
[3,"Oficinas",3]
[4,"Comercial",4]
[5,"Deportes",5]
[6,"Espectáculos",6]
[7,"Ocio y Hostelería",7]
[8,"Sanidad y beneficencia",8]
[9,"Culturales y religiosos",9]
[10,"Edificios singulares",10]
[]
[]
["Nivel"]
["id","valor","idgrupo ","id"]
[0,"Seleccione nivel",0,0]
[1,"Viviendas colectivas de carácter urbano",1,1]
[2,"Viviendas unifamiliares de carácter urbano",1,2]
[3,"Edificación rural",1,3]
[4,"Naves de fabricación y almacenamiento",2,4]
[5,"Garajes y aparcamientos",2,5]
[6,"Servicios de transporte",2,6]
[7,"Edificio exclusivo",3,7]
[8,"Edificio mixto",3,8]
[9,"Banca y seguros",3,9]
[10,"Comercios en edificio mixto",4,10]
[11,"Comercios en edificio exclusivo",4,11]
[12,"Mercados y supermercados",4,12]
[13,"Cubiertos",5,13]
[14,"Descubiertos",5,14]
[15,"Auxiliares",5,15]
[16,"Espectáculos deportivos",5,16]
[17,"Varios",6,17]
[18,"Bares musicales, salas de fiestas, discotecas",6,18]
[19,"Cines y teatros",6,19]
[20,"Con residencia",7,20]
[21,"Sin residencia",7,21]
[22,"Exposiciones y reuniones",7,22]
[23,"Sanitarios con camas",8,23]
[24,"Sanitarios varios",8,24]
[25,"Benéficos y asistencia",8,25]
[26,"Culturales con residencia",9,26]
[27,"Culturales sin residencia",9,27]
[28,"Religiosos",9,28]
[29,"Histórico-artísticos",10,29]
[30,"De carácter oficial",10,30]
[31,"De carácter especial",10,31]
[]
[]
["Tipología"]
["id","valor","idnivel","coeficiente"]
[0,"Seleccione tipología",0,0]
[1,"Edificación abierta",1,1.05]
[2,"En manzana cerrada",1,1]
[3,"Garajes, trasteros y locales en estructura",1,0.53]
[4,"Edificación aislada o pareada",2,1.25]
[5,"En linea o manzana cerrada",2,1.1499999999999999]
[6,"Garajes y porches en PB (garajes, trasteros y anexos)",2,0.65]
[8,"Anexos",3,0.45]
[9,"Fabricación en una planta",4,0.6]
[10,"Fabricación en varias plantas",4,0.7]
[11,"Almacenamiento",4,0.5]
[12,"Garajes",5,0.7]
[13,"Aparcamientos",5,0.4]
[14,"Estaciones de servicio",6,1.25]
[15,"Estaciones",6,1.8]
[16,"Oficinas múltiples",7,1.5]
[17,"Oficinas unitarias",7,1.6]
[18,"Unido a viviendas",8,1.3]
[19,"Unido a industria",8,1]
[20,"En edificio exclusivo",9,2.1]
[21,"En edificio mixto",9,1.9]
[22,"Locales comerciales y talleres",10,1.2]
[23,"Galerías comerciales",10,1.3]
[24,"En una planta",11,1.6]
[25,"En varias plantas",11,1.75]
[26,"Mercados",12,1.45]
[27,"Hipermercados y supermercados",12,1.3]
[28,"Deportes varios cubiertos",13,1.5]
[29,"Piscinas cubiertas",13,1.65]
[30,"Deportes varios descubiertos",14,0.45]
[31,"Piscinas descubiertas",14,0.6]
[32,"Vestuarios, depuradoras, calefacción, etc.",15,1.05]
[33,"Estadios, plazas de toros",16,1.7]
[34,"Hipódromos, canódromos, velódromos, etc.",16,1.55]
[35,"Cubiertos",17,1.35]
[36,"Descubiertos",17,0.55000000000000004]
[37,"En edificio exclusivo",18,1.9]
[38,"Unido a otros usos",18,1.55]
[39,"Cines",19,1.8]
[40,"Teatros",19,1.9]
[41,"Hoteles, hostales, moteles",20,1.9]
[42,"Aparthoteles, bungalows",20,2.0499999999999998]
[43,"Restaurantes",21,1.75]
[44,"Bares y cafeterías",21,1.5]
[45,"Casinos y clubs sociales",22,1.9]
[46,"Exposiciones y congresos",22,1.8]
[47,"Sanatorios y clínicas",23,2.25]
[48,"Hospitales",23,2.15]
[49,"Ambulatorios y consultorios",24,1.7]
[50,"Balnearios, casas de baños",24,1.9]
[51,"Con residencia (asilos, residencias, etc.)",25,1.8]
[52,"Sin residencia (comedores, clubs, guarderías, etc.)",25,1.4]
[53,"Internados",26,1.7]
[54,"Colegios mayores",26,1.9]
[55,"Facultades, colegios, escuelas",27,1.4]
[56,"Bibliotecas y museos",27,1.65]
[57,"Conventos y centros parroquiales",28,1.25]
[58,"Iglesias y capillas",28,2]
[59,"Monumentales",29,2]
[60,"Ambientales o típicos",29,1.65]
[61,"Administrativos",30,1.6]
[62,"Representativos",30,1.75]
[63,"Penitenciarios, militares y varios",31,1.55]
[64,"Obras urbanización interior",31,0.15]
[65,"Campings",31,0.12]
[66,"Campos de golf",31,0.03]
[67,"Jardinería",31,0.11]
[68,"Silos y depósitos para sólidos (m/3)",31,0.2]
[69,"Depósitos líquidos (m/3)",31,0.28999999999999998]
[70,"Depósitos gases (m/3)",31,0.4]
[]
[]
[]
["Ci"]
["id","valor","coeficienteci"]
[0,"Seleccione tipo de intervención",0]
[1,"Obra nueva",1]
[2,"Rehabilitación completa (no estructural)",0.92]
[3,"Rehabilitación de instalaciones y acabados interiores",0.39]
[4,"Rehabilitación de acabados interiores",0.23]
[5,"Rehabilitación energética",0.15]
[]
[]
["Provincias"]
[]
["id","provincia"]
[0,"Seleccione provincia"]
[1,"Ávila"]
[2,"Burgos"]
[3,"Segovia"]
[4,"Soria"]
[5,"Valladolid"]
[]
["Módulos de Catastro por municipios"]
["id","municipio","modulo","provincia"]
[0,"Seleccione municipio"]
[1,"Albornos","500",1]
[2,"Aldeanueva de Santa Cruz","500",1]
[3,"Aldeaseca","500",1]
[4,"Amavida","500",1]
[5,"Arenas de San Pedro","600",1]
[6,"Arevalillo","500",1]
[7,"Arévalo","600",1]
[8,"Aveinte","500",1]
[9,"Avellaneda","500",1]
[10,"Ávila","700",1]
[11,"Barraco","600",1]
[12,"Barromán","500",1]
[13,"Becedas","500",1]
[14,"Becedillas","500",1]
[15,"Bercial de Zapardiel","500",1]
[16,"Bernuy-Zapardiel","500",1]
[17,"Berrocalejo de Aragona","500",1]
[18,"Blascomillán","500",1]
[19,"Blasconuño de Matacabras","500",1]
[20,"Blascosancho","500",1]
[21,"Bohoyo","550",1]
[22,"Bonilla de la Sierra","500",1]
[23,"Brabos","500",1]
[24,"Bularros","500",1]
[25,"Burgohondo","550",1]
[26,"Cabezas de Alambre","500",1]
[27,"Cabezas del Pozo","500",1]
[28,"Cabezas del Villar","500",1]
[29,"Cabizuela","500",1]
[30,"Canales","500",1]
[31,"Candeleda","600",1]
[32,"Cantiveros","500",1]
[33,"Cardeñosa","550",1]
[34,"Casas del Puerto","500",1]
[35,"Casasola","500",1]
[36,"Casavieja","600",1]
[37,"Casillas","550",1]
[38,"Castellanos de Zapardiel","500",1]
[39,"Cebreros","600",1]
[40,"Cepeda la Mora","500",1]
[41,"Chamartín","500",1]
[42,"Cillán","500",1]
[43,"Cisla","500",1]
[44,"Collado de Contreras","500",1]
[45,"Collado del Mirón","500",1]
[46,"Constanzana","500",1]
[47,"Crespos","550",1]
[48,"Cuevas del Valle","550",1]
[49,"Diego del Carpio","500",1]
[50,"Donjimeno","500",1]
[51,"Donvidas","500",1]
[52,"El Arenal","600",1]
[53,"El Barco de Ávila","600",1]
[54,"El Bohodón","500",1]
[55,"El Fresno","550",1]
[56,"El Herradón","550",1]
[57,"El Hornillo","550",1]
[58,"El Hoyo de Pinares","600",1]
[59,"El Losar del Barco","500",1]
[60,"El Mirón","500",1]
[61,"El Oso","500",1]
[62,"El Parral","500",1]
[63,"El Tiemblo","600",1]
[64,"Espinosa de los Caballeros","500",1]
[65,"Flores de Ávila","500",1]
[66,"Fontiveros","550",1]
[67,"Fresnedilla","500",1]
[68,"Fuente el Saúz","500",1]
[69,"Fuentes de Año","500",1]
[70,"Gallegos de Altamiros","500",1]
[71,"Gallegos de Sobrinos","500",1]
[72,"Garganta del Villar","500",1]
[73,"Gavilanes","550",1]
[74,"Gemuño","500",1]
[75,"Gilbuena","500",1]
[76,"Gil García","500",1]
[77,"Gimialcón","500",1]
[78,"Gotarrendura","500",1]
[79,"Grandes y San Martín","500",1]
[80,"Guisando","550",1]
[81,"Gutierre-Muñoz","500",1]
[82,"Hernansancho","500",1]
[83,"Herreros de Suso","500",1]
[84,"Higuera de las Dueñas","550",1]
[85,"Horcajo de las Torres","500",1]
[86,"Hoyocasero","500",1]
[87,"Hoyorredondo","500",1]
[88,"Hoyos de Miguel Muñoz","500",1]
[89,"Hoyos del Collado","500",1]
[90,"Hoyos del Espino","550",1]
[91,"Hurtumpascual","500",1]
[92,"Junciana","500",1]
[93,"La Adrada","600",1]
[94,"La Aldehuela","500",1]
[95,"La Carrera","500",1]
[96,"La Colilla","550",1]
[97,"La Hija de Dios","500",1]
[98,"La Horcajada","550",1]
[99,"La Serrada","550",1]
[100,"La Torre","500",1]
[101,"Langa","500",1]
[102,"Lanzahíta","550",1]
[103,"Las Berlanas","500",1]
[104,"Las Navas del Marqués","600",1]
[105,"Los Llanos de Tormes","500",1]
[106,"Madrigal de las Altas Torres","550",1]
[107,"Maello","550",1]
[108,"Malpartida de Corneja","500",1]
[109,"Mamblas","500",1]
[110,"Mancera de Arriba","500",1]
[111,"Manjabálago","500",1]
[112,"Marlín","500",1]
[113,"Martiherrero","550",1]
[114,"Martínez","500",1]
[115,"Mediana de Voltoya","550",1]
[116,"Medinilla","500",1]
[117,"Mengamuñoz","500",1]
[118,"Mesegar de Corneja","500",1]
[119,"Mijares","550",1]
[120,"Mingorría","550",1]
[121,"Mironcillo","500",1]
[122,"Mirueña de los Infanzones","500",1]
[123,"Mombeltrán","550",1]
[124,"Monsalupe","500",1]
[125,"Moraleja de Matacabras","500",1]
[126,"Muñana","550",1]
[127,"Muñico","500",1]
[128,"Muñogalindo","550",1]
[129,"Muñogrande","500",1]
[130,"Muñomer del Peco","500",1]
[131,"Muñopepe","500",1]
[132,"Muñosancho","500",1]
[133,"Muñotello","500",1]
[134,"Narrillos del Álamo","500",1]
[135,"Narrillos del Rebollar","500",1]
[136,"Narros de Saldueña","500",1]
[137,"Narros del Castillo","500",1]
[138,"Narros del Puerto","500",1]
[139,"Nava de Arévalo","500",1]
[140,"Nava del Barco","500",1]
[141,"Navacepedilla de Corneja","500",1]
[142,"Navadijos","500",1]
[143,"Navaescurial","500",1]
[144,"Navahondilla","550",1]
[145,"Navalacruz","550",1]
[146,"Navalmoral de la Sierra","550",1]
[147,"Navalonguilla","500",1]
[148,"Navalosa","500",1]
[149,"Navalperal de Pinares","600",1]
[150,"Navalperal de Tormes","500",1]
[151,"Navaluenga","600",1]
[152,"Navaquesera","500",1]
[153,"Navarredonda de Gredos","550",1]
[154,"Navarredondilla","500",1]
[155,"Navarrevisca","550",1]
[156,"Navatalgordo","500",1]
[157,"Navatejares","500",1]
[158,"Neila de San Miguel","500",1]
[159,"Niharra","500",1]
[160,"Ojos-Albos","500",1]
[161,"Orbita","500",1]
[162,"Padiernos","550",1]
[163,"Pajares de Adaja","500",1]
[164,"Palacios de Goda","550",1]
[165,"Papatrigo","500",1]
[166,"Pascualcobo","500",1]
[167,"Pedro Bernardo","600",1]
[168,"Pedro-Rodríguez","500",1]
[169,"Peguerinos","550",1]
[170,"Peñalba de Ávila","500",1]
[171,"Piedrahíta","600",1]
[172,"Piedralaves","600",1]
[173,"Poveda","500",1]
[174,"Poyales del Hoyo","550",1]
[175,"Pozanco","500",1]
[176,"Pradosegar","500",1]
[177,"Puerto Castilla","500",1]
[178,"Rasueros","500",1]
[179,"Riocabado","500",1]
[180,"Riofrío","500",1]
[181,"Rivilla de Barajas","500",1]
[182,"Salobral","550",1]
[183,"Salvadiós","500",1]
[184,"San Bartolomé de Béjar","500",1]
[185,"San Bartolomé de Corneja","500",1]
[186,"San Bartolomé de Pinares","550",1]
[187,"San Esteban de los Patos","500",1]
[188,"San Esteban de Zapardiel","500",1]
[189,"San Esteban del Valle","550",1]
[190,"San García de Ingelmos","500",1]
[191,"San Juan de Gredos","550",1]
[192,"San Juan de la Encinilla","500",1]
[193,"San Juan de la Nava","500",1]
[194,"San Juan del Molinillo","500",1]
[195,"San Juan del Olmo","500",1]
[196,"San Lorenzo de Tormes","500",1]
[197,"San Martín de la Vega del Alberche","500",1]
[198,"San Martín del Pimpollar","500",1]
[199,"San Miguel de Corneja","500",1]
[200,"San Miguel de Serrezuela","500",1]
[201,"San Pascual","500",1]
[202,"San Pedro del Arroyo","550",1]
[203,"San Vicente de Arévalo","500",1]
[204,"Sanchidrián","550",1]
[205,"Sanchorreja","500",1]
[206,"Santa Cruz de Pinares","550",1]
[207,"Santa Cruz del Valle","550",1]
[208,"Santa María de los Caballeros","500",1]
[209,"Santa María del Arroyo","500",1]
[210,"Santa María del Berrocal","500",1]
[211,"Santa María del Cubillo","500",1]
[212,"Santa María del Tiétar","600",1]
[213,"Santiago de Tormes","500",1]
[214,"Santiago del Collado","500",1]
[215,"Santo Domingo de las Posadas","500",1]
[216,"Santo Tomé de Zabarcos","500",1]
[217,"Serranillos","550",1]
[218,"Sigeres","500",1]
[219,"Sinlabajos","500",1]
[220,"Solana de Ávila","500",1]
[221,"Solana de Rioalmar","500",1]
[222,"Solosancho","550",1]
[223,"Sotalbo","500",1]
[224,"Sotillo de la Adrada","600",1]
[225,"Tiñosillos","500",1]
[226,"Tolbaños","500",1]
[227,"Tormellas","500",1]
[228,"Tornadizos de Ávila","500",1]
[229,"Tórtoles","500",1]
[230,"Umbrías","500",1]
[231,"Vadillo de la Sierra","500",1]
[232,"Valdecasa","500",1]
[233,"Vega de Santa María","500",1]
[234,"Velayos","500",1]
[235,"Villaflor","500",1]
[236,"Villafranca de la Sierra","500",1]
[237,"Villanueva de Ávila","500",1]
[238,"Villanueva de Gómez","500",1]
[239,"Villanueva del Aceral","500",1]
[240,"Villanueva del Campillo","500",1]
[241,"Villar de Corneja","500",1]
[242,"Villarejo del Valle","550",1]
[243,"Villatoro","500",1]
[244,"Viñegra de Moraña","500",1]
[245,"Vita","500",1]
[246,"Zapardiel de la Cañada","500",1]
[247,"Zapardiel de la Ribera","500",1]
[null,"Seleccione municipio"]
[248,"Abajas","500",2]
[249,"Adrada de Haza","500",2]
[250,"Aguas Cándidas","500",2]
[251,"Aguilar de Bureba","500",2]
[252,"Albillos","550",2]
[253,"Alcocero de Mola","500",2]
[254,"Alfoz de Bricia","500",2]
[255,"Alfoz de Quintanadueñas","600",2]
[256,"Alfoz de Santa Gadea","500",2]
[257,"Altable","500",2]
[258,"Ameyugo","550",2]
[259,"Anguix","500",2]
[260,"Aranda de Duero","700",2]
[261,"Arandilla","500",2]
[262,"Arauzo de Miel","550",2]
[263,"Arauzo de Salce","500",2]
[264,"Arauzo de Torre","500",2]
[265,"Arcos de la Llana","600",2]
[266,"Arenillas de Riopisuerga","500",2]
[267,"Arija","550",2]
[268,"Arlanzón","550",2]
[269,"Arraya de Oca","500",2]
[270,"Atapuerca","550",2]
[271,"Avellanosa de Muñó","500",2]
[272,"Bahabón de Esgueva","500",2]
[273,"Baños de Valdearados","500",2]
[274,"Bañuelos de Bureba","500",2]
[275,"Barbadillo de Herreros","500",2]
[276,"Barbadillo del Mercado","500",2]
[277,"Barbadillo del Pez","500",2]
[278,"Barrio de Muñó","500",2]
[279,"Barrios de Colina","500",2]
[280,"Basconcillos del Tozo","500",2]
[281,"Bascuñana","500",2]
[282,"Belbimbre","500",2]
[283,"Belorado","600",2]
[284,"Berberana","500",2]
[285,"Berlangas de Roa","550",2]
[286,"Berzosa de Bureba","500",2]
[287,"Bozoó","500",2]
[288,"Brazacorta","500",2]
[289,"Briviesca","600",2]
[290,"Bugedo","550",2]
[291,"Buniel","600",2]
[292,"Burgos","810",2]
[293,"Busto de Bureba","550",2]
[294,"Cabañes de Esgueva","500",2]
[295,"Cabezón de la Sierra","500",2]
[296,"Cavia","550",2]
[297,"Caleruega","550",2]
[298,"Campillo de Aranda","500",2]
[299,"Campolara","500",2]
[300,"Canicosa de la Sierra","550",2]
[301,"Cantabrana","500",2]
[302,"Carazo","500",2]
[303,"Carcedo de Bureba","500",2]
[304,"Carcedo de Burgos","600",2]
[305,"Cardeñadijo","600",2]
[306,"Cardeñajimeno","600",2]
[307,"Cardeñuela Riopico","500",2]
[308,"Carrias","500",2]
[309,"Cascajares de Bureba","500",2]
[310,"Cascajares de la Sierra","500",2]
[311,"Castellanos de Castro","500",2]
[312,"Castil de Peones","500",2]
[313,"Castildelgado","500",2]
[314,"Castrillo de la Reina","550",2]
[315,"Castrillo de la Vega","550",2]
[316,"Castrillo de Riopisuerga","500",2]
[317,"Castrillo del Val","600",2]
[318,"Castrillo Mota de Judíos","500",2]
[319,"Castrojeriz","550",2]
[320,"Cayuela","500",2]
[321,"Cebrecos","500",2]
[322,"Celada del Camino","500",2]
[323,"Cerezo de Río Tirón","550",2]
[324,"Cerratón de Juarros","500",2]
[325,"Ciadoncha","500",2]
[326,"Cillaperlata","500",2]
[327,"Cilleruelo de Abajo","500",2]
[328,"Cilleruelo de Arriba","500",2]
[329,"Ciruelos de Cervera","500",2]
[330,"Cogollos","600",2]
[331,"Condado de Treviño","600",2]
[332,"Contreras","500",2]
[333,"Coruña del Conde","500",2]
[334,"Covarrubias","600",2]
[335,"Cubillo del Campo","500",2]
[336,"Cubo de Bureba","500",2]
[337,"Cuevas de San Clemente","500",2]
[338,"Encío","500",2]
[339,"Espinosa de Cervera","500",2]
[340,"Espinosa de los Monteros","600",2]
[341,"Espinosa del Camino","500",2]
[342,"Estépar","550",2]
[343,"Fontioso","500",2]
[344,"Frandovínez","550",2]
[345,"Fresneda de la Sierra Tirón","500",2]
[346,"Fresneña","500",2]
[347,"Fresnillo de las Dueñas","550",2]
[348,"Fresno de Río Tirón","500",2]
[349,"Fresno de Rodilla","500",2]
[350,"Frías","550",2]
[351,"Fuentebureba","500",2]
[352,"Fuentecén","500",2]
[353,"Fuentelcésped","550",2]
[354,"Fuentelisendo","500",2]
[355,"Fuentemolinos","500",2]
[356,"Fuentenebro","500",2]
[357,"Fuentespina","600",2]
[358,"Galbarros","500",2]
[359,"Grijalba","500",2]
[360,"Grisaleña","500",2]
[361,"Gumiel de Izán","550",2]
[362,"Gumiel de Mercado","500",2]
[363,"Hacinas","550",2]
[364,"Haza","500",2]
[365,"Hontanas","500",2]
[366,"Hontangas","500",2]
[367,"Hontoria de la Cantera","550",2]
[368,"Hontoria de Valdearados","500",2]
[369,"Hontoria del Pinar","550",2]
[370,"Hornillos del Camino","500",2]
[371,"Hortigüela","550",2]
[372,"Hoyales de Roa","500",2]
[373,"Huérmeces","500",2]
[374,"Huerta de Arriba","500",2]
[375,"Huerta de Rey","550",2]
[376,"Humada","500",2]
[377,"Hurones","500",2]
[378,"Ibeas de Juarros","600",2]
[379,"Ibrillos","500",2]
[380,"Iglesiarrubia","500",2]
[381,"Iglesias","500",2]
[382,"Isar","550",2]
[383,"Itero del Castillo","500",2]
[384,"Jaramillo de la Fuente","500",2]
[385,"Jaramillo Quemado","500",2]
[386,"Junta de Traslaloma","500",2]
[387,"Junta de Villalba de Losa","500",2]
[388,"Jurisdicción de Lara","500",2]
[389,"Jurisdicción de San Zadornil","500",2]
[390,"La Cueva de Roa","500",2]
[391,"La Gallega","500",2]
[392,"La Horra","550",2]
[393,"La Puebla de Arganzón","600",2]
[394,"La Revilla y Ahedo","500",2]
[395,"La Sequera de Haza","500",2]
[396,"La Vid de Bureba","500",2]
[397,"La Vid y Barrios","500",2]
[398,"Las Hormazas","500",2]
[399,"Las Quintanillas","550",2]
[400,"Lerma","600",2]
[401,"Llano de Bureba","500",2]
[402,"Los Altos","500",2]
[403,"Los Ausines","500",2]
[404,"Los Balbases","500",2]
[405,"Los Barrios de Bureba","500",2]
[406,"Madrigal del Monte","500",2]
[407,"Madrigalejo del Monte","550",2]
[408,"Mahamud","500",2]
[409,"Mambrilla de Castrejón","500",2]
[410,"Mambrillas de Lara","500",2]
[411,"Mamolar","500",2]
[412,"Manciles","500",2]
[413,"Mazuela","500",2]
[414,"Mecerreyes","500",2]
[415,"Medina de Pomar","600",2]
[416,"Melgar de Fernamental","600",2]
[417,"Villarcayo de Merindad de Castilla la Vieja","600",2]
[418,"Merindad de Cuesta-Urria","500",2]
[419,"Merindad de Montija","550",2]
[420,"Merindad de Río Ubierna","600",2]
[421,"Merindad de Sotoscueva","500",2]
[422,"Merindad de Valdeporres","500",2]
[423,"Merindad de Valdivielso","500",2]
[424,"Milagros","550",2]
[425,"Miranda de Ebro","700",2]
[426,"Miraveche","500",2]
[427,"Modúbar de la Emparedada","550",2]
[428,"Monasterio de la Sierra","500",2]
[429,"Monasterio de Rodilla","550",2]
[430,"Moncalvillo","500",2]
[431,"Monterrubio de la Demanda","500",2]
[432,"Montorio","500",2]
[433,"Moradillo de Roa","500",2]
[434,"Nava de Roa","500",2]
[435,"Navas de Bureba","500",2]
[436,"Nebreda","500",2]
[437,"Neila","500",2]
[438,"Olmedillo de Roa","500",2]
[439,"Olmillos de Muñó","500",2]
[440,"Oña","600",2]
[441,"Oquillas","500",2]
[442,"Orbaneja Riopico","550",2]
[443,"Padilla de Abajo","500",2]
[444,"Padilla de Arriba","500",2]
[445,"Padrones de Bureba","500",2]
[446,"Palacios de la Sierra","550",2]
[447,"Palacios de Riopisuerga","500",2]
[448,"Palazuelos de la Sierra","500",2]
[449,"Palazuelos de Muñó","500",2]
[450,"Pampliega","500",2]
[451,"Pancorbo","550",2]
[452,"Pardilla","500",2]
[453,"Partido de la Sierra en Tobalina","500",2]
[454,"Pedrosa de Duero","550",2]
[455,"Pedrosa de Río Úrbel","500",2]
[456,"Pedrosa del Páramo","500",2]
[457,"Pedrosa del Príncipe","500",2]
[458,"Peñaranda de Duero","550",2]
[459,"Peral de Arlanza","500",2]
[460,"Piérnigas","500",2]
[461,"Pineda de la Sierra","550",2]
[462,"Pineda Trasmonte","500",2]
[463,"Pinilla de los Barruecos","500",2]
[464,"Pinilla de los Moros","500",2]
[465,"Pinilla Trasmonte","500",2]
[466,"Poza de la Sal","550",2]
[467,"Prádanos de Bureba","500",2]
[468,"Pradoluengo","600",2]
[469,"Presencio","500",2]
[470,"Puentedura","500",2]
[471,"Quemada","500",2]
[472,"Quintana del Pidio","500",2]
[473,"Quintanabureba","500",2]
[474,"Quintanaélez","500",2]
[475,"Quintanaortuño","550",2]
[476,"Quintanapalla","500",2]
[477,"Quintanar de la Sierra","600",2]
[478,"Quintanavides","500",2]
[479,"Quintanilla de la Mata","500",2]
[480,"Quintanilla del Agua y Tordueles","550",2]
[481,"Quintanilla del Coco","500",2]
[482,"Quintanilla San García","500",2]
[483,"Quintanilla Vivar","600",2]
[484,"Rabanera del Pinar","550",2]
[485,"Rábanos","500",2]
[486,"Rabé de las Calzadas","550",2]
[487,"Rebolledo de la Torre","500",2]
[488,"Redecilla del Camino","500",2]
[489,"Redecilla del Campo","500",2]
[490,"Regumiel de la Sierra","550",2]
[491,"Reinoso","500",2]
[492,"Retuerta","500",2]
[493,"Revilla del Campo","500",2]
[494,"Revillarruz","600",2]
[495,"Revilla Vallejera","500",2]
[496,"Rezmondo","500",2]
[497,"Riocavado de la Sierra","500",2]
[498,"Roa","600",2]
[499,"Rojas","500",2]
[500,"Royuela de Río Franco","500",2]
[501,"Rubena","550",2]
[502,"Rublacedo de Abajo","500",2]
[503,"Rucandio","500",2]
[504,"Salas de Bureba","500",2]
[505,"Salas de los Infantes","600",2]
[506,"Saldaña de Burgos","550",2]
[507,"Salinillas de Bureba","500",2]
[508,"San Adrián de Juarros","550",2]
[509,"San Juan del Monte","500",2]
[510,"San Mamés de Burgos","550",2]
[511,"San Martín de Rubiales","500",2]
[512,"San Millán de Lara","500",2]
[513,"San Vicente del Valle","500",2]
[514,"Santa Cecilia","500",2]
[515,"Santa Cruz de la Salceda","500",2]
[516,"Santa Cruz del Valle Urbión","500",2]
[517,"Santa Gadea del Cid","500",2]
[518,"Santa Inés","500",2]
[519,"Santa María del Mercadillo","500",2]
[520,"Santa María del Campo","550",2]
[521,"Santa María del Invierno","500",2]
[522,"Santa María Rivarredonda","500",2]
[523,"Santa Olalla de Bureba","500",2]
[524,"Santibáñez de Esgueva","500",2]
[525,"Santibáñez del Val","500",2]
[526,"Santo Domingo de Silos","550",2]
[527,"Sargentes de la Lora","500",2]
[528,"Sarracín","600",2]
[529,"Sasamón","550",2]
[530,"Solarana","500",2]
[531,"Sordillos","500",2]
[532,"Sotillo de la Ribera","550",2]
[533,"Sotragero","600",2]
[534,"Sotresgudo","550",2]
[535,"Susinos del Páramo","500",2]
[536,"Tamarón","500",2]
[537,"Tardajos","550",2]
[538,"Tejada","500",2]
[539,"Terradillos de Esgueva","500",2]
[540,"Tinieblas de la Sierra","500",2]
[541,"Tobar","500",2]
[542,"Tordómar","500",2]
[543,"Torrecilla del Monte","500",2]
[544,"Torregalindo","500",2]
[545,"Torrelara","500",2]
[546,"Torrepadre","500",2]
[547,"Torresandino","550",2]
[548,"Tórtoles de Esgueva","550",2]
[549,"Tosantos","500",2]
[550,"Trespaderne","600",2]
[551,"Tubilla del Agua","550",2]
[552,"Tubilla del Lago","500",2]
[553,"Úrbel del Castillo","500",2]
[554,"Vadocondes","500",2]
[555,"Valdeande","500",2]
[556,"Valdezate","500",2]
[557,"Valdorros","550",2]
[558,"Vallarta de Bureba","500",2]
[559,"Valle de las Navas","550",2]
[560,"Valle de Losa","550",2]
[561,"Valle de Manzanedo","500",2]
[562,"Valle de Mena","600",2]
[563,"Valle de Oca","500",2]
[564,"Valle de Santibáñez","500",2]
[565,"Valle de Sedano","550",2]
[566,"Valle de Tobalina","550",2]
[567,"Valle de Valdebezana","550",2]
[568,"Valle de Valdelaguna","500",2]
[569,"Valle de Valdelucio","500",2]
[570,"Valle de Zamanzas","500",2]
[571,"Vallejera","500",2]
[572,"Valles de Palenzuela","500",2]
[573,"Valluércanes","500",2]
[574,"Valmala","500",2]
[575,"Vileña","500",2]
[576,"Villadiego","550",2]
[577,"Villaescusa de Roa","500",2]
[578,"Villaescusa la Sombría","500",2]
[579,"Villaespasa","500",2]
[580,"Villafranca Montes de Oca","550",2]
[581,"Villafruela","500",2]
[582,"Villagalijo","500",2]
[583,"Villagonzalo Pedernales","600",2]
[584,"Villahoz","500",2]
[585,"Villalba de Duero","550",2]
[586,"Villalbilla de Burgos","600",2]
[587,"Villalbilla de Gumiel","500",2]
[588,"Villaldemiro","500",2]
[589,"Villalmanzo","550",2]
[590,"Villamayor de los Montes","500",2]
[591,"Villamayor de Treviño","500",2]
[592,"Villambistia","500",2]
[593,"Villamedianilla","500",2]
[594,"Villamiel de la Sierra","500",2]
[595,"Villangómez","500",2]
[596,"Villanueva de Argaño","550",2]
[597,"Villanueva de Carazo","500",2]
[598,"Villanueva de Gumiel","550",2]
[599,"Villanueva de Teba","500",2]
[600,"Villaquirán de la Puebla","500",2]
[601,"Villaquirán de los Infantes","500",2]
[602,"Villariezo","600",2]
[603,"Villasandino","500",2]
[604,"Villasur de Herreros","550",2]
[605,"Villatuelda","500",2]
[606,"Villaverde del Monte","500",2]
[607,"Villaverde-Mogina","500",2]
[608,"Villayerno Morquillas","550",2]
[609,"Villazopeque","500",2]
[610,"Villegas","500",2]
[611,"Villoruebo","500",2]
[612,"Viloria de Rioja","500",2]
[613,"Vilviestre del Pinar","550",2]
[614,"Vizcaínos","500",2]
[615,"Zael","500",2]
[616,"Zarzosa de Río Pisuerga","500",2]
[617,"Zazuar","500",2]
[618,"Zuñeda","500",2]
[null,"Seleccione municipio"]
[619,"Abades","550",3]
[620,"Adrada de Pirón","550",3]
[621,"Adrados","500",3]
[622,"Aguilafuente","550",3]
[623,"Alconada de Maderuelo","500",3]
[624,"Aldea Real","550",3]
[625,"Aldealcorvo","500",3]
[626,"Aldealengua de Pedraza","550",3]
[627,"Aldealengua de Santa María","500",3]
[628,"Aldeanueva de la Serrezuela","500",3]
[629,"Aldeanueva del Codonal","500",3]
[630,"Aldeasoña","500",3]
[631,"Aldehorno","500",3]
[632,"Aldehuela del Codonal","500",3]
[633,"Aldeonte","500",3]
[634,"Anaya","500",3]
[635,"Añe","500",3]
[636,"Arahuetes","500",3]
[637,"Arcones","550",3]
[638,"Arevalillo de Cega","500",3]
[639,"Armuña","550",3]
[640,"Ayllón","600",3]
[641,"Barbolla","500",3]
[642,"Basardilla","550",3]
[643,"Bercial","500",3]
[644,"Bercimuel","500",3]
[645,"Bernardos","550",3]
[646,"Bernuy de Porreros","600",3]
[647,"Boceguillas","550",3]
[648,"Brieva","550",3]
[649,"Caballar","500",3]
[650,"Cabañas de Polendos","550",3]
[651,"Cabezuela","550",3]
[652,"Calabazas de Fuentidueña","500",3]
[653,"Campo de San Pedro","550",3]
[654,"Cantalejo","600",3]
[655,"Cantimpalos","550",3]
[656,"Carbonero el Mayor","600",3]
[657,"Carrascal del Río","500",3]
[658,"Casla","550",3]
[659,"Castillejo de Mesleón","550",3]
[660,"Castro de Fuentidueña","500",3]
[661,"Castrojimeno","500",3]
[662,"Castroserna de Abajo","500",3]
[663,"Castroserracín","500",3]
[664,"Cedillo de la Torre","500",3]
[665,"Cerezo de Abajo","550",3]
[666,"Cerezo de Arriba","600",3]
[667,"Chañe","550",3]
[668,"Cilleruelo de San Mamés","500",3]
[669,"Cobos de Fuentidueña","500",3]
[670,"Coca","550",3]
[671,"Codorniz","500",3]
[672,"Collado Hermoso","550",3]
[673,"Condado de Castilnovo","500",3]
[674,"Corral de Ayllón","550",3]
[675,"Cozuelos de Fuentidueña","500",3]
[676,"Cubillo","500",3]
[677,"Cuéllar","600",3]
[678,"Cuevas de Provanco","500",3]
[679,"Domingo García","500",3]
[680,"Donhierro","500",3]
[681,"Duruelo","550",3]
[682,"El Espinar","600",3]
[683,"Encinas","500",3]
[684,"Encinillas","550",3]
[685,"Escalona del Prado","500",3]
[686,"Escarabajosa de Cabezas","550",3]
[687,"Escobar de Polendos","500",3]
[688,"Espirdo","600",3]
[689,"Fresneda de Cuéllar","500",3]
[690,"Fresno de Cantespino","600",3]
[691,"Fresno de la Fuente","500",3]
[692,"Frumales","500",3]
[693,"Fuente de Santa Cruz","500",3]
[694,"Fuente el Olmo de Fuentidueña","500",3]
[695,"Fuente el Olmo de Íscar","500",3]
[696,"Fuentepelayo","550",3]
[697,"Fuentepiñel","500",3]
[698,"Fuenterrebollo","500",3]
[699,"Fuentesaúco de Fuentidueña","500",3]
[700,"Fuentesoto","500",3]
[701,"Fuentidueña","500",3]
[702,"Gallegos","550",3]
[703,"Garcillán","600",3]
[704,"Gomezserracín","550",3]
[705,"Grajera","550",3]
[706,"Honrubia de la Cuesta","500",3]
[707,"Hontalbilla","550",3]
[708,"Hontanares de Eresma","600",3]
[709,"Ituero y Lama","600",3]
[710,"Juarros de Riomoros","500",3]
[711,"Juarros de Voltoya","500",3]
[712,"La Lastrilla","700",3]
[713,"La Losa","550",3]
[714,"La Matilla","500",3]
[715,"Labajos","550",3]
[716,"Laguna de Contreras","500",3]
[717,"Languilla","500",3]
[718,"Lastras de Cuéllar","550",3]
[719,"Lastras del Pozo","500",3]
[720,"Los Huertos","550",3]
[721,"Maderuelo","550",3]
[722,"Marazoleja","500",3]
[723,"Marazuela","500",3]
[724,"Martín Miguel","550",3]
[725,"Martín Muñoz de la Dehesa","550",3]
[726,"Martín Muñoz de las Posadas","550",3]
[727,"Marugán","600",3]
[728,"Mata de Cuéllar","500",3]
[729,"Matabuena","550",3]
[730,"Melque de Cercos","500",3]
[731,"Membibre de la Hoz","500",3]
[732,"Migueláñez","500",3]
[733,"Montejo de Arévalo","500",3]
[734,"Montejo de la Vega de la Serrezuela","550",3]
[735,"Monterrubio","500",3]
[736,"Moral de Hornuez","500",3]
[737,"Mozoncillo","550",3]
[738,"Muñopedro","550",3]
[739,"Muñoveros","500",3]
[740,"Nava de la Asunción","600",3]
[741,"Navafría","550",3]
[742,"Navalilla","500",3]
[743,"Navalmanzano","550",3]
[744,"Navares de Ayuso","500",3]
[745,"Navares de Enmedio","500",3]
[746,"Navares de las Cuevas","500",3]
[747,"Navas de Oro","550",3]
[748,"Navas de Riofrío","600",3]
[749,"Navas de San Antonio","600",3]
[750,"Nieva","550",3]
[751,"Olombrada","550",3]
[752,"Orejana","500",3]
[753,"Ortigosa de Pestaño","500",3]
[754,"Ortigosa del Monte","600",3]
[755,"Otero de Herreros","600",3]
[756,"Pajarejos","500",3]
[757,"Palazuelos de Eresma","700",3]
[758,"Pedraza","600",3]
[759,"Pelayos del Arroyo","550",3]
[760,"Perosillo","500",3]
[761,"Pinarejos","550",3]
[762,"Pinarnegrillo","500",3]
[1236,"Pradales",500,3]
[763,"Prádena","500",3]
[764,"Puebla de Pedraza","550",3]
[765,"Rapariegos","500",3]
[766,"Real Sitio de San Ildefonso","500",3]
[767,"Rebollo","500",3]
[768,"Remondo","500",3]
[769,"Riaguas de San Bartolomé","500",3]
[770,"Riaza","600",3]
[771,"Ribota","550",3]
[772,"Riofrío de Riaza","550",3]
[773,"Roda de Eresma","550",3]
[774,"Sacramenia","550",3]
[775,"Samboal","550",3]
[776,"San Cristóbal de Cuéllar","500",3]
[777,"San Cristóbal de la Vega","500",3]
[778,"San Cristóbal de Segovia","700",3]
[779,"San Ildefonso o La Granja","700",3]
[780,"San Martín y Mudrián","500",3]
[781,"San Miguel de Bernuy","500",3]
[782,"San Pedro de Gaíllos","500",3]
[783,"Sanchonuño","550",3]
[784,"Sangarcía","550",3]
[785,"Santa María la Real de Nieva","550",3]
[786,"Santa Marta del Cerro","500",3]
[787,"Santiuste de Pedraza","500",3]
[788,"Santiuste de San Juan Bautista","500",3]
[789,"Santo Domingo de Pirón","550",3]
[790,"Santo Tomé del Puerto","550",3]
[791,"Sauquillo de Cabezas","500",3]
[792,"Sebúlcor","550",3]
[793,"Segovia","700",3]
[794,"Sepúlveda","600",3]
[795,"Sequera de Fresno","500",3]
[796,"Sotillo (Segovia)","500",3]
[797,"Sotosalbos","550",3]
[798,"Tabanera la Luenga","550",3]
[799,"Tolocirio","500",3]
[800,"Torre Val de San Pedro","550",3]
[801,"Torreadrada","500",3]
[802,"Torrecaballeros","600",3]
[803,"Torrecilla del Pinar","500",3]
[804,"Torreiglesias","550",3]
[805,"Trescasas","600",3]
[806,"Turégano","550",3]
[807,"Urueñas","500",3]
[808,"Valdeprados","550",3]
[809,"Valdevacas de Montejo","500",3]
[810,"Valdevacas y Guijar","500",3]
[811,"Valle de Tabladillo","500",3]
[812,"Vallelado","500",3]
[813,"Valleruela de Pedraza","500",3]
[814,"Valleruela de Sepúlveda","500",3]
[815,"Valseca","550",3]
[816,"Valtiendas","500",3]
[817,"Valverde del Majano","600",3]
[818,"Veganzones","500",3]
[819,"Vegas de Matute","600",3]
[820,"Ventosilla y Tejadilla","550",3]
[821,"Villacastín","600",3]
[822,"Villaverde de Íscar","550",3]
[823,"Villaverde de Montejo","500",3]
[824,"Villeguillo","500",3]
[825,"Yanguas de Eresma","550",3]
[826,"Zarzuela del Monte","550",3]
[827,"Zarzuela del Pinar","550",3]
[null,"Seleccione municipio"]
[828,"Abejar","550",4]
[829,"Adradas","500",4]
[830,"Ágreda","600",4]
[831,"Alconaba","500",4]
[832,"Alcubilla de Avellaneda","500",4]
[833,"Alcubilla de las Peñas","500",4]
[834,"Aldealafuente","500",4]
[835,"Aldealices","500",4]
[836,"Aldealpozo","500",4]
[837,"Aldealseñor","500",4]
[838,"Aldehuela de Periáñez","500",4]
[839,"Alentisque","500",4]
[840,"Aliud","500",4]
[841,"Almajano","500",4]
[842,"Almaluez","500",4]
[843,"Almarza","550",4]
[844,"Almazán","600",4]
[845,"Almazul","500",4]
[846,"Almenar de Soria","500",4]
[847,"Alpanseque","500",4]
[848,"Arancón","500",4]
[849,"Arcos de Jalón","600",4]
[850,"Arenillas","500",4]
[851,"Arévalo de la Sierra","500",4]
[852,"Ausejo de la Sierra","500",4]
[853,"Barahona","500",4]
[854,"Barca","500",4]
[855,"Barcones","500",4]
[856,"Bayubas de Abajo","500",4]
[857,"Bayubas de Arriba","500",4]
[858,"Beratón","500",4]
[859,"Berlanga de Duero","550",4]
[860,"Blacos","500",4]
[861,"Bliecos","500",4]
[862,"Borjabad","500",4]
[863,"Borobia","500",4]
[864,"Buberos","500",4]
[865,"Buitrago","500",4]
[866,"Burgo de Osma (El)-Ciudad de Osma","700",4]
[867,"Cabrejas del Campo","500",4]
[868,"Cabrejas del Pinar","550",4]
[869,"Calatañazor","550",4]
[870,"Caltojar","500",4]
[871,"Candilichera","500",4]
[872,"Cañamaque","500",4]
[873,"Carabantes","500",4]
[874,"Caracena","500",4]
[875,"Carrascosa de Abajo","500",4]
[876,"Carrascosa de la Sierra","500",4]
[877,"Casarejos","500",4]
[878,"Castilfrío de la Sierra","500",4]
[879,"Castillejo de Robledo","500",4]
[880,"Castilruiz","500",4]
[881,"Centenera de Andaluz","500",4]
[882,"Cerbón","500",4]
[883,"Cidones","550",4]
[884,"Cigudosa","500",4]
[885,"Cihuela","500",4]
[886,"Ciria","500",4]
[887,"Cirujales del Río","500",4]
[888,"Coscurita","500",4]
[889,"Covaleda","600",4]
[890,"Cubilla","500",4]
[891,"Cubo de la Solana","500",4]
[892,"Cueva de Ágreda","500",4]
[893,"Dévanos","500",4]
[894,"Deza","500",4]
[895,"Duruelo de la Sierra","600",4]
[896,"El Royo","550",4]
[897,"Escobosa de Almazán","500",4]
[898,"Espeja de San Marcelino","500",4]
[899,"Espejón","500",4]
[900,"Estepa de San Juan","500",4]
[901,"Frechilla de Almazán","500",4]
[902,"Fresno de Caracena","500",4]
[903,"Fuentearmegil","500",4]
[904,"Fuentecambrón","500",4]
[905,"Fuentecantos","500",4]
[906,"Fuentelmonge","500",4]
[907,"Fuentelsaz de Soria","500",4]
[908,"Fuentepinilla","500",4]
[909,"Fuentes de Magaña","500",4]
[910,"Fuentestrún","500",4]
[911,"Garray","600",4]
[912,"Golmayo","700",4]
[913,"Gómara","500",4]
[914,"Gormaz","500",4]
[915,"Herrera de Soria","500",4]
[916,"Hinojosa del Campo","500",4]
[917,"La Póveda de Soria","500",4]
[918,"Quiñonería","500",4]
[919,"La Riba de Escalote","500",4]
[920,"Langa de Duero","550",4]
[921,"Las Aldehuelas","500",4]
[922,"Liceras","500",4]
[923,"Los Rábanos","550",4]
[924,"Los Villares de Soria","500",4]
[925,"La Losilla","500",4]
[926,"Magaña","500",4]
[927,"Maján","500",4]
[928,"Matalebreras","500",4]
[929,"Matamala de Almazán","500",4]
[930,"Medinaceli","600",4]
[931,"Miño de Medinaceli","500",4]
[932,"Miño de San Esteban","500",4]
[933,"Molinos de Duero","550",4]
[934,"Momblona","500",4]
[935,"Monteagudo de las Vicarías","550",4]
[936,"Montejo de Tiermes","550",4]
[937,"Montenegro de Cameros","500",4]
[938,"Morón de Almazán","500",4]
[939,"Muriel de la Fuente","500",4]
[940,"Muriel Viejo","500",4]
[941,"Nafría de Ucero","500",4]
[942,"Narros","500",4]
[943,"Navaleno","550",4]
[944,"Nepas","500",4]
[945,"Nolay","500",4]
[946,"Noviercas","500",4]
[947,"Ólvega","600",4]
[948,"Oncala","500",4]
[949,"Pinilla del Campo","500",4]
[950,"Portillo de Soria","500",4]
[951,"Pozalmuro","500",4]
[952,"Quintana Redonda","550",4]
[953,"Quintanas de Gormaz","500",4]
[954,"Rebollar","500",4]
[955,"Recuerda","500",4]
[956,"Rello","500",4]
[957,"Renieblas","500",4]
[958,"Retortillo de Soria","500",4]
[959,"Reznos","500",4]
[960,"Rioseco de Soria","500",4]
[961,"Rollamienta","500",4]
[962,"Salduero","550",4]
[963,"San Esteban de Gormaz","600",4]
[964,"San Felices","500",4]
[965,"San Leonardo de Yagüe","600",4]
[966,"San Pedro Manrique","550",4]
[967,"Santa Cruz de Yanguas","500",4]
[968,"Santa María de Huerta","550",4]
[969,"Santa María de las Hoyas","500",4]
[970,"Serón de Nágima","500",4]
[971,"Soliedra","500",4]
[972,"Soria","700",4]
[973,"Sotillo del Rincón","550",4]
[974,"Suellacabras","500",4]
[975,"Tajahuerce","500",4]
[976,"Tajueco","500",4]
[977,"Talveila","500",4]
[978,"Tardelcuende","550",4]
[979,"Taroda","500",4]
[980,"Tejado","500",4]
[981,"Torlengua","500",4]
[982,"Torreblacos","500",4]
[983,"Torrubia de Soria","500",4]
[984,"Trévago","500",4]
[985,"Ucero","550",4]
[986,"Vadillo","500",4]
[987,"Valdeavellano de Tera","500",4]
[988,"Valdegeña","500",4]
[989,"Valdelagua del Cerro","500",4]
[990,"Valdemaluque","500",4]
[991,"Valdenebro","500",4]
[992,"Valdeprado","500",4]
[993,"Valderrodilla","500",4]
[994,"Valtajeros","500",4]
[995,"Velamazán","500",4]
[996,"Velilla de la Sierra","500",4]
[997,"Velilla de los Ajos","500",4]
[998,"Viana de Duero","500",4]
[999,"Villaciervos","500",4]
[1000,"Villanueva de Gormaz","500",4]
[1001,"Villar del Ala","500",4]
[1002,"Villar del Campo","500",4]
[1003,"Villar del Río","500",4]
[1004,"Villasayas","500",4]
[1005,"Villaseca de Arciel","500",4]
[1006,"Vinuesa","600",4]
[1007,"Vizmanos","500",4]
[1008,"Vozmediano","500",4]
[1009,"Yanguas","500",4]
[1010,"Yelo","500",4]
[null,"Seleccione municipio",0]
[1011,"Adalia","500",5]
[1012,"Aguasal","500",5]
[1013,"Aguilar de Campos","500",5]
[1014,"Alaejos","550",5]
[1015,"Alcazarén","550",5]
[1016,"Aldea de San Miguel","550",5]
[1017,"Aldeamayor de San Martín","600",5]
[1018,"Almenara de Adaja","500",5]
[1019,"Amusquillo","500",5]
[1020,"Arroyo de la Encomienda","700",5]
[1021,"Ataquines","550",5]
[1022,"Bahabón","500",5]
[1023,"Barcial de la Loma","500",5]
[1024,"Barruelo del Valle","500",5]
[1025,"Becilla de Valderaduey","500",5]
[1026,"Benafarces","500",5]
[1027,"Bercero","500",5]
[1028,"Berceruelo","500",5]
[1029,"Berrueces","500",5]
[1030,"Bobadilla del Campo","500",5]
[1031,"Bocigas","500",5]
[1032,"Bocos de Duero","500",5]
[1033,"Boecillo","600",5]
[1034,"Bolaños de Campos","500",5]
[1035,"Brahojos de Medina","500",5]
[1036,"Bustillo de Chaves","500",5]
[1037,"Cabezón de Pisuerga","600",5]
[1038,"Cabezón de Valderaduey","500",5]
[1039,"Cabreros del Monte","500",5]
[1040,"Campaspero","550",5]
[1041,"Camporredondo","500",5]
[1042,"Canalejas de Peñafiel","500",5]
[1043,"Canillas de Esgueva","500",5]
[1044,"Carpio","550",5]
[1045,"Casasola de Arión","500",5]
[1046,"Castrejón de Trabancos","500",5]
[1047,"Castrillo de Duero","500",5]
[1048,"Castrillo-Tejeriego","500",5]
[1049,"Castrobol","500",5]
[1050,"Castrodeza","550",5]
[1051,"Castromembibre","500",5]
[1052,"Castromonte","500",5]
[1053,"Castronuevo de Esgueva","550",5]
[1054,"Castronuño","550",5]
[1055,"Castroponce","500",5]
[1056,"Castroverde de Cerrato","500",5]
[1057,"Ceinos de Campos","500",5]
[1058,"Cervillego de la Cruz","500",5]
[1059,"Cigales","600",5]
[1060,"Ciguñuela","550",5]
[1061,"Cogeces de Íscar","500",5]
[1062,"Cogeces del Monte","550",5]
[1063,"Corcos del Valle","550",5]
[1064,"Corrales de Duero","500",5]
[1065,"Cubillas de Santa Marta","500",5]
[1066,"Cuenca de Campos","500",5]
[1067,"Curiel de Duero","500",5]
[1068,"El Campillo","500",5]
[1069,"Encinas de Esgueva","500",5]
[1070,"Esguevillas de Esgueva","500",5]
[1071,"Fombellida","500",5]
[1072,"Fompedraza","500",5]
[1073,"Fontihoyuelo","500",5]
[1074,"Fresno el Viejo","550",5]
[1075,"Fuensaldaña","600",5]
[1076,"Fuente el Sol","500",5]
[1077,"Fuente-Olmedo","500",5]
[1078,"Gallegos de Hornija","500",5]
[1079,"Gatón de Campos","500",5]
[1080,"Geria","550",5]
[1081,"Herrín de Campos","500",5]
[1082,"Hornillos de Eresma","500",5]
[1083,"Íscar","600",5]
[1084,"La Cistérniga","700",5]
[1085,"La Mudarra","550",5]
[1086,"La Parrilla","550",5]
[1087,"La Pedraja de Portillo","550",5]
[1088,"La Seca","550",5]
[1089,"La Unión de Campos","500",5]
[1090,"La Zarza","500",5]
[1091,"Laguna de Duero","700",5]
[1092,"Langayo","500",5]
[1093,"Llano de Olmedo","500",5]
[1094,"Lomoviejo","500",5]
[1095,"Manzanillo","500",5]
[1096,"Marzales","500",5]
[1097,"Matapozuelos","550",5]
[1098,"Matilla de los Caños","500",5]
[1099,"Mayorga","550",5]
[1100,"Medina de Rioseco","600",5]
[1101,"Medina del Campo","700",5]
[1102,"Megeces","500",5]
[1103,"Melgar de Abajo","500",5]
[1104,"Melgar de Arriba","500",5]
[1105,"Mojados","600",5]
[1106,"Monasterio de Vega","500",5]
[1107,"Montealegre de Campos","500",5]
[1108,"Montemayor de Pililla","550",5]
[1109,"Moral de la Reina","500",5]
[1110,"Moraleja de las Panaderas","500",5]
[1111,"Morales de Campos","500",5]
[1112,"Mota del Marqués","500",5]
[1113,"Mucientes","600",5]
[1114,"Muriel","500",5]
[1115,"Nava del Rey","550",5]
[1116,"Nueva Villa de las Torres","500",5]
[1117,"Olivares de Duero","500",5]
[1118,"Olmedo","600",5]
[1119,"Olmos de Esgueva","550",5]
[1120,"Olmos de Peñafiel","500",5]
[1121,"Palazuelo de Vedija","500",5]
[1122,"Pedrajas de San Esteban","600",5]
[1123,"Pedrosa del Rey","500",5]
[1124,"Peñafiel","600",5]
[1125,"Peñaflor de Hornija","500",5]
[1126,"Pesquera de Duero","550",5]
[1127,"Piña de Esgueva","550",5]
[1128,"Piñel de Abajo","500",5]
[1129,"Piñel de Arriba","500",5]
[1130,"Pollos","550",5]
[1131,"Portillo","550",5]
[1132,"Pozal de Gallinas","550",5]
[1133,"Pozaldez","500",5]
[1134,"Pozuelo de la Orden","500",5]
[1135,"Puras","500",5]
[1136,"Quintanilla de Abajo","500",5]
[1137,"Quintanilla de Arriba","550",5]
[1138,"Quintanilla de Trigueros","500",5]
[1139,"Quintanilla del Molar","500",5]
[1140,"Rábano","500",5]
[1141,"Ramiro","500",5]
[1142,"Renedo de Esgueva","600",5]
[1143,"Roales de Campos","500",5]
[1144,"Robladillo","500",5]
[1145,"Roturas","500",5]
[1146,"Rubí de Bracamonte","500",5]
[1147,"Rueda","550",5]
[1148,"Saelices de Mayorga","500",5]
[1149,"Salvador de Zapardiel","500",5]
[1150,"San Cebrián de Mazote","500",5]
[1151,"San Llorente","500",5]
[1152,"San Martín de Valvení","500",5]
[1153,"San Miguel del Arroyo","550",5]
[1154,"San Miguel del Pino","600",5]
[1155,"San Pablo de la Moraleja","500",5]
[1156,"San Pedro de Latarce","550",5]
[1157,"San Pelayo","500",5]
[1158,"San Román de Hornija","500",5]
[1159,"San Salvador","500",5]
[1160,"San Vicente del Palacio","500",5]
[1161,"Santa Eufemia del Arroyo","500",5]
[1162,"Santervás de Campos","500",5]
[1163,"Santibáñez de Valcorba","550",5]
[1164,"Santovenia de Pisuerga","600",5]
[1165,"Sardón de Duero","550",5]
[1166,"Serrada","550",5]
[1167,"Siete Iglesias de Trabancos","550",5]
[1168,"Simancas","700",5]
[1169,"Tamariz de Campos","500",5]
[1170,"Tiedra","550",5]
[1171,"Tordehumos","500",5]
[1172,"Tordesillas","600",5]
[1173,"Torre de Esgueva","500",5]
[1174,"Torre de Peñafiel","500",5]
[1175,"Torrecilla de la Abadesa","500",5]
[1176,"Torrecilla de la Orden","500",5]
[1177,"Torrecilla de la Torre","500",5]
[1178,"Torrelobatón","500",5]
[1179,"Torrescárcela","500",5]
[1180,"Traspinedo","550",5]
[1181,"Trigueros del Valle","550",5]
[1182,"Tudela de Duero","600",5]
[1183,"Urones de Castroponce","500",5]
[1184,"Urueña","550",5]
[1185,"Valbuena de Duero","550",5]
[1186,"Valdearcos de la Vega","500",5]
[1187,"Valdenebro de los Valles","500",5]
[1188,"Valdestillas","550",5]
[1189,"Valdunquillo","500",5]
[1190,"Valladolid","810",5]
[1191,"Valoria la Buena","550",5]
[1192,"Valverde de Campos","500",5]
[1193,"Vega de Ruiponce","500",5]
[1194,"Vega de Valdetronco","500",5]
[1195,"Velascálvaro","500",5]
[1196,"Velilla","500",5]
[1197,"Velliza","500",5]
[1198,"Ventosa de la Cuesta","500",5]
[1199,"Viana de Cega","600",5]
[1200,"Villabáñez","550",5]
[1201,"Villabaruz de Campos","500",5]
[1202,"Villabrágima","550",5]
[1203,"Villacarralón","500",5]
[1204,"Villacid de Campos","500",5]
[1205,"Villaco","500",5]
[1206,"Villafrades de Campos","500",5]
[1207,"Villafranca de Duero","500",5]
[1208,"Villafrechós","500",5]
[1209,"Villafuerte","500",5]
[1210,"Villagarcía de Campos","500",5]
[1211,"Villagómez la Nueva","500",5]
[1212,"Villalán de Campos","500",5]
[1213,"Villalar de los Comuneros","500",5]
[1214,"Villalba de la Loma","500",5]
[1215,"Villalba de los Alcores","550",5]
[1216,"Villalbarba","500",5]
[1217,"Villalón de Campos","550",5]
[1218,"Villamuriel de Campos","500",5]
[1219,"Villán de Tordesillas","500",5]
[1220,"Villanubla","600",5]
[1221,"Villanueva de Duero","550",5]
[1222,"Villanueva de la Condesa","500",5]
[1223,"Villanueva de los Caballeros","500",5]
[1224,"Villanueva de los Infantes","500",5]
[1225,"Villanueva de San Mancio","500",5]
[1226,"Villardefrades","500",5]
[1227,"Villarmentero de Esgueva","550",5]
[1228,"Villasexmir","500",5]
[1229,"Villavaquerín","500",5]
[1230,"Villavellid","500",5]
[1231,"Villaverde de Medina","550",5]
[1232,"Villavicencio de los Caballeros","500",5]
[1233,"Viloria","550",5]
[1234,"Wamba","500",5]
[1235,"Zaratán","700",5]